bitfinex/quotes_BTCUSD_20250615
["timestamp","ask_amount","ask_price","bid_price","bid_amount"]
[1749990322854,5.60195281,105230.0,105220.0,0.0258689]
[1749990323081,5.79619281,105230.0,105220.0,0.02586889]
[1749990323311,5.79619281,105230.0,105220.0,0.02586887]
[1749990323486,5.79619281,105230.0,105220.0,0.02586875]
[1749990323717,5.79619281,105230.0,105220.0,0.04368485]
[1749990323882,5.79619281,105230.0,105220.0,0.04369897]
[1749990324088,5.79615281,105230.0,105220.0,0.02588297]
[1749990324527,5.82472081,105230.0,105220.0,0.03287497]
[1749990324735,5.82472081,105230.0,105220.0,0.05959864]
[1749990325209,5.82472081,105230.0,105220.0,0.05959862]
[1749990325412,5.82472081,105230.0,105220.0,0.03287497]
[1749990325623,5.82472081,105230.0,105220.0,0.0595982]
[1749990325827,5.82472081,105230.0,105220.0,0.04178264]
[1749990326436,0.58052081,105230.0,105220.0,0.05959803]
[1749990326637,0.73496081,105230.0,105220.0,0.05530102]
[1749990326851,0.73496081,105230.0,105220.0,0.05068937]
[1749990327058,0.73496081,105230.0,105220.0,0.03287497]
[1749990327298,0.73496081,105230.0,105220.0,0.05068877]
[1749990327499,0.73496081,105230.0,105220.0,0.03287497]
[1749990327702,0.73496081,105230.0,105220.0,0.04178198]
[1749990327909,0.73496081,105230.0,105220.0,0.03287497]
[1749990328114,0.73496081,105230.0,105220.0,0.05068957]
[1749990328315,0.73496081,105230.0,105220.0,0.05068791]
[1749990328530,0.73496081,105230.0,105220.0,0.03287497]
[1749990328725,0.73496081,105230.0,105220.0,0.05068871]
[1749990328984,0.73496081,105230.0,105220.0,0.03287497]
[1749990329420,0.73496081,105230.0,105220.0,0.05068872]
[1749990329951,0.73496081,105230.0,105220.0,0.05068845]
[1749990330087,0.73496081,105230.0,105220.0,0.05068844]
[1749990330282,0.73496081,105230.0,105220.0,0.03287497]
[1749990330696,0.73496081,105230.0,105220.0,0.0506884]
[1749990331165,0.73496081,105230.0,105220.0,0.05068846]
[1749990331336,0.73496081,105230.0,105220.0,0.03287497]
[1749990331544,0.73496081,105230.0,105220.0,0.05068823]
[1749990331695,0.73496081,105230.0,105220.0,0.03287497]
[1749990331908,0.73496081,105230.0,105220.0,0.05068823]
[1749990332813,0.73496081,105230.0,105220.0,0.05068822]
[1749990333234,0.73496081,105230.0,105220.0,0.05068823]
[1749990333474,0.73496081,105230.0,105220.0,0.05068817]
[1749990334033,0.73496081,105230.0,105220.0,0.03287497]
[1749990334167,0.73496081,105230.0,105220.0,0.050688]
[1749990334362,0.73496081,105230.0,105220.0,0.05068822]
[1749990334768,0.73496081,105230.0,105220.0,0.03287497]
[1749990335036,0.73496081,105230.0,105220.0,0.05068686]
[1749990335037,0.58052081,105230.0,105220.0,0.05068686]
[1749990335232,0.73496081,105230.0,105220.0,0.05068686]
[1749990335412,0.73496081,105230.0,105220.0,0.03287497]
[1749990335588,0.73496081,105230.0,105220.0,0.0506861]
[1749990335796,0.73496081,105230.0,105220.0,0.03287497]
[1749990335992,0.73496081,105230.0,105220.0,0.05068392]
[1749990336220,0.73496081,105230.0,105220.0,0.05068348]
[1749990336384,0.73496081,105230.0,105220.0,0.05068347]
[1749990337302,0.73496081,105230.0,105220.0,0.050669]
[1749990338065,0.73496081,105230.0,105220.0,0.05066899]
[1749990338472,0.73496081,105230.0,105220.0,0.03287497]
[1749990338696,0.73496081,105230.0,105220.0,0.050669]
[1749990339097,0.73496081,105230.0,105220.0,0.03287497]
[1749990339262,0.73496081,105230.0,105220.0,0.050669]
[1749990339461,0.73496081,105230.0,105220.0,0.03287497]
[1749990339763,0.73496081,105230.0,105220.0,0.05066887]
[1749990339949,0.73496081,105230.0,105220.0,0.05066854]
[1749990340149,0.73496081,105230.0,105220.0,0.05066853]
[1749990340779,0.73496081,105230.0,105220.0,0.03287497]
[1749990340980,0.73496081,105230.0,105220.0,0.05066853]
[1749990341403,0.73496081,105230.0,105220.0,0.05066837]
[1749990341845,0.73496081,105230.0,105220.0,0.03287497]
[1749990342061,0.73496081,105230.0,105220.0,0.05066835]
[1749990342269,0.73496081,105230.0,105220.0,0.05066853]
[1749990342507,0.73496081,105230.0,105220.0,0.05066837]
[1749990342746,0.73496081,105230.0,105220.0,0.05066761]
[1749990343456,0.73496081,105230.0,105220.0,0.03287497]
[1749990343595,0.73496081,105230.0,105220.0,0.05066734]
[1749990343804,0.73496081,105230.0,105220.0,0.05066735]
[1749990344001,0.73496081,105230.0,105220.0,0.05066682]
[1749990344202,0.73496081,105230.0,105220.0,0.05066657]
[1749990344420,0.73496081,105230.0,105220.0,0.05066654]
[1749990344693,0.73496081,105230.0,105220.0,0.03287497]
[1749990344896,0.73496081,105230.0,105220.0,0.05066592]
[1749990345329,0.73496081,105230.0,105220.0,0.05066586]
[1749990345539,0.73496081,105230.0,105220.0,0.03287497]
[1749990345716,0.73496081,105230.0,105220.0,0.05066542]
[1749990345927,0.73496081,105230.0,105220.0,0.03287497]
[1749990346124,0.73496081,105230.0,105220.0,0.05067961]
[1749990346509,0.73496081,105230.0,105220.0,0.04567962]
[1749990347122,0.73496081,105230.0,105220.0,0.04567961]
[1749990347293,0.73496081,105230.0,105220.0,0.04567955]
[1749990347501,0.73492081,105230.0,105220.0,0.04567955]
[1749990347942,0.73492081,105230.0,105220.0,0.04567888]
[1749990348093,0.73492081,105230.0,105220.0,0.02787497]
[1749990348309,0.73492081,105230.0,105220.0,0.04567846]
[1749990348704,0.73492081,105230.0,105220.0,0.04567848]
[1749990349311,0.73492081,105230.0,105220.0,0.04567844]
[1749990349684,0.21862981,105200.0,105190.0,0.28465113]
[1749990349910,0.21862981,105200.0,105190.0,0.37990983]
[1749990350132,0.19961958,105200.0,105190.0,0.38941625]
[1749990350368,0.19961958,105200.0,105190.0,0.42151625]
[1749990350604,0.19961958,105200.0,105190.0,0.42151816]
[1749990350851,0.19961958,105200.0,105190.0,0.40371217]
[1749990351123,0.19011406,105200.0,105190.0,0.22188108]
[1749990351384,0.19011406,105200.0,105190.0,0.21358021]
[1749990351594,0.19011406,105200.0,105190.0,0.23938695]
[1749990351799,0.19011406,105200.0,105190.0,0.16379756]
[1749990351930,0.19011406,105200.0,105190.0,0.13348425]
[1749990352147,0.19011406,105200.0,105190.0,0.12848425]
[1749990352417,0.19011406,105200.0,105190.0,0.14829097]
[1749990352617,0.19011406,105200.0,105190.0,0.15129097]
[1749990353065,0.19011406,105200.0,105190.0,0.15129096]
[1749990353268,0.19011406,105200.0,105190.0,0.15129067]
[1749990353475,0.19011406,105200.0,105190.0,0.13348425]
[1749990353913,0.19011406,105200.0,105190.0,0.16195809]
[1749990354332,0.19011406,105200.0,105190.0,0.15129107]
[1749990354765,0.19011406,105200.0,105190.0,0.13348425]
[1749990354972,0.19011406,105200.0,105190.0,0.15129095]
[1749990355187,0.19011406,105200.0,105190.0,0.15129094]
[1749990355596,0.19011406,105200.0,105190.0,0.15129112]
[1749990355792,0.19011406,105200.0,105190.0,0.15129095]
[1749990356779,0.19011406,105200.0,105190.0,0.13348425]
[1749990357006,0.19011406,105200.0,105190.0,0.15129051]
[1749990357261,0.19011406,105200.0,105190.0,0.1512581]
[1749990357497,0.19011406,105200.0,105190.0,0.15125785]
[1749990357747,0.19011406,105200.0,105190.0,0.15125778]
[1749990358198,0.19011406,105200.0,105190.0,0.15125777]
[1749990358637,0.19011406,105200.0,105190.0,0.15125796]
[1749990359436,0.19011406,105200.0,105190.0,0.15125837]
[1749990359662,0.19011406,105200.0,105190.0,0.15125838]
[1749990359879,0.19011406,105200.0,105190.0,0.14299085]
[1749990360146,0.19011406,105200.0,105190.0,0.16076502]
[1749990360744,0.19011406,105200.0,105190.0,0.15125595]
[1749990360937,0.19011406,105200.0,105190.0,0.1512553]
[1749990361147,0.19011406,105200.0,105190.0,0.15125546]
[1749990361367,0.19011406,105200.0,105190.0,0.15125542]
[1749990361588,0.19011406,105200.0,105190.0,0.15125543]
[1749990361805,0.19011406,105200.0,105190.0,0.1512555]
[1749990362016,0.19011406,105200.0,105190.0,0.1512556]
[1749990362480,0.19011406,105200.0,105190.0,0.1512553]
[1749990362699,0.19011406,105200.0,105190.0,0.15125527]
[1749990362907,0.19011406,105200.0,105190.0,0.15125526]
[1749990363155,0.19011406,105200.0,105190.0,0.13348425]
[1749990363385,0.19011406,105200.0,105190.0,0.15125526]
[1749990363921,0.19961967,105200.0,105190.0,0.3604003]
[1749990364191,0.20912501,105200.0,105190.0,0.36990654]
[1749990364449,0.01901095,105200.0,105190.0,0.35213556]
[1749990364707,0.02851593,105200.0,105190.0,0.38891857]
[1749990364921,0.02851593,105200.0,105190.0,0.37114768]
[1749990365165,0.02851593,105200.0,105190.0,0.38891748]
[1749990365411,0.02851593,105200.0,105190.0,0.38891764]
[1749990365604,0.03802154,105200.0,105190.0,0.37114768]
[1749990365822,0.03802154,105200.0,105190.0,0.38891768]
[1749990366024,0.03802154,105200.0,105190.0,0.37114768]
[1749990366262,0.03802154,105200.0,105190.0,0.38891768]
[1749990366889,0.03802154,105200.0,105190.0,0.38891775]
[1749990367124,0.03802154,105200.0,105190.0,0.38891774]
[1749990367335,0.03802154,105200.0,105190.0,0.37114768]
[1749990367823,0.04752724,105200.0,105190.0,0.37114768]
[1749990368033,0.04752724,105200.0,105190.0,0.36164171]
[1749990368241,0.04752724,105200.0,105190.0,0.37944377]
[1749990368444,0.04752724,105200.0,105190.0,0.37944373]
[1749990368653,0.04752724,105200.0,105190.0,0.38894979]
[1749990368860,0.04752724,105200.0,105190.0,0.37114714]
[1749990369066,0.04752724,105200.0,105190.0,0.38894919]
[1749990370126,0.04752724,105200.0,105190.0,0.37114714]
[1749990370324,0.04752724,105200.0,105190.0,0.38894929]
[1749990370528,0.04752724,105200.0,105190.0,0.37114714]
[1749990370755,0.04752724,105200.0,105190.0,0.38894929]
[1749990371422,0.04752724,105200.0,105190.0,0.37114714]
[1749990371636,0.04752724,105200.0,105190.0,0.38894929]
[1749990371860,0.04752724,105200.0,105190.0,0.37114714]
[1749990372282,0.04752724,105200.0,105190.0,0.38894913]
[1749990372488,0.03802154,105200.0,105190.0,0.38894916]
[1749990372710,0.03802154,105200.0,105190.0,0.37114714]
[1749990372918,0.03802154,105200.0,105190.0,0.38894916]
[1749990373332,0.03802154,105200.0,105190.0,0.37114714]
[1749990373537,0.03802154,105200.0,105190.0,0.38894916]
[1749990373738,0.03802154,105200.0,105190.0,0.37114714]
[1749990373973,0.03802154,105200.0,105190.0,0.38894916]
[1749990374171,0.03802154,105200.0,105190.0,0.37114714]
[1749990374335,0.03802154,105200.0,105190.0,0.38894915]
[1749990374538,0.2281356,105200.0,105190.0,0.35213511]
[1749990374752,0.21863053,105200.0,105190.0,0.3604308]
[1749990374943,0.04615085,105200.0,105190.0,0.3604308]
[1749990375143,0.04615085,105200.0,105190.0,0.36043079]
[1749990375344,0.05565619,105200.0,105190.0,0.36993694]
[1749990375547,0.05565619,105200.0,105190.0,0.36993709]
[1749990375754,0.05565619,105200.0,105190.0,0.36993708]
[1749990375984,0.05565619,105200.0,105190.0,0.36993691]
[1749990376138,0.05565619,105200.0,105190.0,0.35213511]
[1749990376316,0.05565619,105200.0,105190.0,0.36993671]
[1749990376518,0.05565619,105200.0,105190.0,0.35213511]
[1749990376718,0.0651618,105200.0,105190.0,0.44365783]
[1749990376963,0.0746675,105200.0,105190.0,0.46145969]
[1749990377292,0.0746675,105200.0,105190.0,0.44365783]
[1749990377953,0.0746675,105200.0,105190.0,0.37114714]
[1749990378169,0.0746675,105200.0,105190.0,0.3889487]
[1749990378699,0.08417302,105200.0,105190.0,0.38894843]
[1749990378898,0.08417302,105200.0,105190.0,0.38894826]
[1749990379309,0.08417302,105200.0,105190.0,0.37114714]
[1749990379524,0.08417302,105200.0,105190.0,0.38894827]
[1749990379666,0.08417302,105200.0,105190.0,0.37114714]
[1749990379880,0.08417302,105200.0,105190.0,0.3889482]
[1749990380136,0.08417302,105200.0,105190.0,0.37114714]
[1749990380267,0.08417302,105200.0,105190.0,0.38894765]
[1749990380471,0.08417302,105200.0,105190.0,0.37114714]
[1749990380671,0.08417302,105200.0,105190.0,0.38894685]
[1749990381115,0.08417302,105200.0,105190.0,0.38894677]
[1749990381891,0.08417302,105200.0,105190.0,0.36164117]
[1749990382095,0.06516216,105200.0,105190.0,0.36042859]
[1749990382294,0.06516216,105200.0,105190.0,0.34262896]
[1749990382522,0.06516216,105200.0,105190.0,0.36042859]
[1749990382727,0.06516216,105200.0,105190.0,0.34262896]
[1749990383010,0.06516216,105200.0,105190.0,0.36042859]
[1749990383433,0.06516216,105200.0,105190.0,0.34262896]
[1749990383654,0.06516216,105200.0,105190.0,0.36042859]
[1749990383862,0.06516216,105200.0,105190.0,0.36042801]
[1749990384303,0.06516216,105200.0,105190.0,0.36042807]
[1749990384717,0.06516216,105200.0,105190.0,0.34262896]
[1749990384929,0.06516216,105200.0,105190.0,0.36042768]
[1749990385148,0.05565655,105200.0,105190.0,0.17975685]
[1749990385350,0.04615085,105200.0,105190.0,0.37939557]
[1749990385470,0.04615085,105200.0,105190.0,0.37110325]
[1749990385699,0.04615085,105200.0,105190.0,0.38890199]
[1749990386317,0.04615085,105200.0,105190.0,0.38060958]
[1749990386521,0.04615085,105200.0,105190.0,0.3984084]
[1749990387340,0.04615085,105200.0,105190.0,0.39840945]
[1749990387567,0.04615085,105200.0,105190.0,0.39840974]
[1749990387765,0.04615085,105200.0,105190.0,0.38060958]
[1749990388008,0.04615085,105200.0,105190.0,0.39840974]
[1749990388135,0.04615085,105200.0,105190.0,0.39840972]
[1749990388539,0.04615085,105200.0,105190.0,0.38060958]
[1749990388753,0.04615085,105200.0,105190.0,0.39840974]
[1749990388962,0.04615085,105200.0,105190.0,0.39840975]
[1749990389190,0.04615085,105200.0,105190.0,0.39840963]
[1749990389392,0.04615085,105200.0,105190.0,0.53496958]
[1749990389611,0.04615085,105200.0,105190.0,0.50649574]
[1749990389818,0.04615085,105200.0,105190.0,0.5527697]
[1749990390244,0.04615085,105200.0,105190.0,0.55276933]
[1749990390515,0.04615085,105200.0,105190.0,0.50649574]
[1749990390725,0.04615085,105200.0,105190.0,0.52429586]
[1749990391155,0.04615085,105200.0,105190.0,0.55276961]
[1749990391571,0.04615085,105200.0,105190.0,0.50649574]
[1749990391787,0.04615085,105200.0,105190.0,0.52429709]
[1749990391995,0.04615085,105200.0,105190.0,0.50649574]
[1749990392399,0.04615085,105200.0,105190.0,0.52429702]
[1749990392616,0.04615085,105200.0,105190.0,0.52429674]
[1749990392819,0.04615085,105200.0,105190.0,0.52428897]
[1749990393266,0.04615085,105200.0,105190.0,0.50649574]
[1749990393470,0.04615085,105200.0,105190.0,0.52428871]
[1749990393682,0.04615085,105200.0,105190.0,0.50649574]
[1749990393908,0.04615085,105200.0,105190.0,0.52428868]
[1749990394108,0.04615085,105200.0,105190.0,0.53379487]
[1749990394538,0.04615085,105200.0,105190.0,0.53379489]
[1749990394964,0.04615085,105200.0,105190.0,0.53504198]
[1749990395173,0.04615085,105200.0,105190.0,0.51600198]
[1749990395394,0.04615085,105200.0,105190.0,0.5337943]
[1749990395607,0.04615085,105200.0,105190.0,0.51600198]
[1749990396012,0.04615085,105200.0,105190.0,0.53379366]
[1749990396632,0.04615085,105200.0,105190.0,0.53379367]
[1749990397077,0.04615085,105200.0,105190.0,0.51600198]
[1749990397507,0.05565637,105200.0,105190.0,0.52550804]
[1749990397702,0.05565637,105200.0,105190.0,0.54329974]
[1749990398194,0.05565637,105200.0,105190.0,0.52550804]
[1749990398410,0.05565637,105200.0,105190.0,0.54329974]
[1749990398821,0.05565637,105200.0,105190.0,0.52550804]
[1749990399021,0.05565637,105200.0,105190.0,0.54329974]
[1749990399229,0.19011406,105200.0,105190.0,0.54329974]
[1749990399439,0.19961958,105200.0,105190.0,0.52550804]
[1749990399640,0.19961958,105200.0,105190.0,0.54329972]
[1749990399850,0.19961958,105200.0,105190.0,0.54330078]
[1749990400072,0.19961958,105200.0,105190.0,0.54330198]
[1749990400273,0.01901077,105200.0,105190.0,0.52550804]
[1749990400480,0.03802118,105200.0,105190.0,0.52550741]
[1749990400697,0.03802118,105200.0,105190.0,0.54330269]
[1749990400906,0.03802118,105200.0,105190.0,0.54330156]
[1749990401336,0.03802118,105200.0,105190.0,0.543301]
[1749990401547,0.03802118,105200.0,105190.0,0.54330134]
[1749990401989,0.03802118,105200.0,105190.0,0.52550741]
[1749990402202,0.03802118,105200.0,105190.0,0.54330129]
[1749990402402,0.03802118,105200.0,105190.0,0.52550741]
[1749990402616,0.03802118,105200.0,105190.0,0.54330129]
[1749990402814,0.03802118,105200.0,105190.0,0.54330124]
[1749990403022,0.03802118,105200.0,105190.0,0.54330249]
[1749990403270,0.03802118,105200.0,105190.0,0.5433031]
[1749990403436,0.04752679,105200.0,105190.0,0.54330283]
[1749990403640,0.04752679,105200.0,105190.0,0.54330234]
[1749990403847,0.04752679,105200.0,105190.0,0.54330235]
[1749990404061,0.04752679,105200.0,105190.0,0.52550741]
[1749990404271,0.04752679,105200.0,105190.0,0.54330235]
[1749990404496,0.03802118,105200.0,105190.0,0.52550741]
[1749990404697,0.03802118,105200.0,105190.0,0.61487035]
[1749990404903,0.03802118,105200.0,105190.0,0.59706794]
[1749990405360,0.03802118,105200.0,105190.0,0.61487023]
[1749990405810,0.03802118,105200.0,105190.0,0.61487024]
[1749990406223,0.03802118,105200.0,105190.0,0.59706794]
[1749990406445,0.03802118,105200.0,105190.0,0.61487024]
[1749990406650,0.03802118,105200.0,105190.0,0.59706794]
[1749990406853,0.03802118,105200.0,105190.0,0.61487029]
[1749990407272,0.03802118,105200.0,105190.0,0.59706794]
[1749990407684,0.03802118,105200.0,105190.0,0.61487028]
[1749990407896,0.03802118,105200.0,105190.0,0.59706794]
[1749990408106,0.03802118,105200.0,105190.0,0.61487028]
[1749990408343,0.03802118,105200.0,105190.0,0.61487027]
[1749990408557,0.02851566,105200.0,105190.0,0.61487022]
[1749990408773,0.02851566,105200.0,105190.0,0.59706794]
[1749990408987,0.02851566,105200.0,105190.0,0.61487021]
[1749990409195,0.03802118,105200.0,105190.0,0.64334848]
[1749990409402,0.03802118,105200.0,105190.0,0.62554643]
[1749990409644,0.03802118,105200.0,105190.0,0.66114957]
[1749990409861,0.03802118,105200.0,105190.0,0.66114942]
[1749990410495,0.03802118,105200.0,105190.0,0.643348]
[1749990411131,0.03802118,105200.0,105190.0,0.66114942]
[1749990411951,0.03802118,105200.0,105190.0,0.66114925]
[1749990412198,0.03802118,105200.0,105190.0,0.66114911]
[1749990412403,0.03802118,105200.0,105190.0,0.643348]
[1749990412603,0.04752679,105200.0,105190.0,0.56228141]
[1749990413006,0.04752679,105200.0,105190.0,0.58008252]
[1749990413212,0.04752679,105200.0,105190.0,0.56228141]
[1749990413368,0.04752679,105200.0,105190.0,0.58008252]
[1749990413982,0.04752679,105200.0,105190.0,0.56228141]
[1749990414200,0.04752679,105200.0,105190.0,0.58008261]
[1749990414406,0.04752679,105200.0,105190.0,0.56228141]
[1749990414614,0.04752679,105200.0,105190.0,0.58008262]
[1749990414818,0.04752679,105200.0,105190.0,0.56228141]
[1749990415026,0.04752679,105200.0,105190.0,0.58008262]
[1749990415225,0.04752679,105200.0,105190.0,0.56228141]
[1749990415435,0.04752679,105200.0,105190.0,0.58008262]
[1749990415641,0.04752751,105200.0,105190.0,0.58008262]
[1749990416260,0.04752751,105200.0,105190.0,0.56228141]
[1749990416468,0.04752751,105200.0,105190.0,0.58007379]
[1749990417720,0.04752751,105200.0,105190.0,0.42571379]
[1749990417934,0.04752751,105200.0,105190.0,0.58003379]
[1749990418345,0.04752751,105200.0,105190.0,0.56224141]
[1749990418546,0.04752751,105200.0,105190.0,0.58003379]
[1749990418754,0.04752751,105200.0,105190.0,0.56224141]
[1749990418955,0.04752751,105200.0,105190.0,0.5800338]
[1749990419165,0.04752751,105200.0,105190.0,0.58003398]
[1749990419785,0.23764157,105200.0,105190.0,0.58003398]
[1749990420188,0.23764157,105200.0,105190.0,0.58954004]
[1749990420810,0.23764157,105200.0,105190.0,0.58954005]
[1749990421465,0.23764157,105200.0,105190.0,0.58954004]
[1749990422088,0.23764157,105200.0,105190.0,0.57174765]
[1749990422307,0.23764157,105200.0,105190.0,0.58954004]
[1749990422537,0.23764157,105200.0,105190.0,0.57174765]
[1749990422771,0.23764157,105200.0,105190.0,0.58954004]
[1749990422998,0.22813632,105200.0,105190.0,0.58004284]
[1749990423223,0.22813632,105200.0,105190.0,0.56224159]
[1749990423466,0.22813632,105200.0,105190.0,0.58004284]
[1749990423692,0.22813632,105200.0,105190.0,0.56224159]
[1749990424108,0.22813632,105200.0,105190.0,0.58954892]
[1749990424325,0.22813632,105200.0,105190.0,0.58954894]
[1749990424750,0.22813632,105200.0,105190.0,0.57174765]
[1749990425617,0.22813632,105200.0,105190.0,0.58954895]
[1749990426029,0.03802226,105200.0,105190.0,0.65350902]
[1749990426267,0.03802226,105200.0,105190.0,0.67131032]
[1749990426721,0.03802226,105200.0,105190.0,0.5895485]
[1749990427612,0.03802226,105200.0,105190.0,0.5717472]
[1749990427837,0.03802226,105200.0,105190.0,0.58954853]
[1749990428064,0.03802226,105200.0,105190.0,0.5717472]
[1749990428577,0.03802226,105200.0,105190.0,0.58954853]
[1749990428723,0.03802226,105200.0,105190.0,0.58954855]
[1749990429172,0.02851656,105200.0,105190.0,0.58954855]
[1749990429390,0.03802226,105200.0,105190.0,0.5717472]
[1749990429607,0.03802226,105200.0,105190.0,0.58954855]
[1749990431303,0.03802226,105200.0,105190.0,0.58954854]
[1749990431939,0.03802226,105200.0,105190.0,0.58954855]
[1749990432783,0.03802226,105200.0,105190.0,0.58954859]
[1749990433201,0.02851656,105200.0,105190.0,0.58954859]
[1749990433628,0.03802226,105200.0,105190.0,0.43522856]
[1749990433830,0.03802226,105200.0,105190.0,0.58954856]
[1749990434036,0.03802226,105200.0,105190.0,0.5717472]
[1749990434241,0.03802226,105200.0,105190.0,0.58954856]
[1749990434466,0.03802226,105200.0,105190.0,0.5895485]
[1749990434903,0.03802226,105200.0,105190.0,0.58954851]
[1749990435111,0.03802226,105200.0,105190.0,0.5717472]
[1749990435763,0.03802226,105200.0,105190.0,0.5895485]
[1749990435959,0.03802226,105200.0,105190.0,0.58954851]
[1749990436234,0.03802226,105200.0,105190.0,0.5717472]
[1749990436444,0.03802226,105200.0,105190.0,0.5895485]
[1749990436846,0.03802226,105200.0,105190.0,0.58954849]
[1749990437127,0.03802226,105200.0,105190.0,0.5717472]
[1749990437465,0.03802226,105200.0,105190.0,0.5895485]
[1749990437941,0.03802226,105200.0,105190.0,0.5717472]
[1749990438149,0.02851656,105200.0,105190.0,0.58954921]
[1749990438363,0.02851656,105200.0,105190.0,0.58954943]
[1749990438562,0.02851656,105200.0,105190.0,0.58954978]
[1749990438994,0.02851656,105200.0,105190.0,0.58954977]
[1749990439202,0.03802226,105200.0,105190.0,0.58954969]
[1749990439404,0.03802226,105200.0,105190.0,0.58955001]
[1749990439814,0.03802226,105200.0,105190.0,0.5717472]
[1749990440030,0.03802226,105200.0,105190.0,0.58955023]
[1749990440434,0.03802226,105200.0,105190.0,0.5895521]
[1749990440814,0.03802226,105200.0,105190.0,0.58955203]
[1749990441014,0.03802226,105200.0,105190.0,0.58955204]
[1749990441427,0.03802226,105200.0,105190.0,0.5717472]
[1749990441596,0.03802226,105200.0,105190.0,0.58955177]
[1749990441801,0.03802226,105200.0,105190.0,0.5717472]
[1749990442039,0.03802226,105200.0,105190.0,0.58955176]
[1749990442270,0.03802226,105200.0,105190.0,0.58955177]
[1749990442812,0.03802226,105200.0,105190.0,0.5717472]
[1749990443019,0.03802226,105200.0,105190.0,0.58955176]
[1749990443632,0.03802226,105200.0,105190.0,0.58955209]
[1749990444083,0.03802226,105200.0,105190.0,0.58955213]
[1749990444374,0.03802226,105200.0,105190.0,0.5717472]
[1749990445001,0.03802226,105200.0,105190.0,0.58955199]
[1749990445404,0.03802226,105200.0,105190.0,0.5717472]
[1749990445602,0.03802226,105200.0,105190.0,0.58955199]
[1749990446068,0.03802226,105200.0,105190.0,0.5717472]
[1749990446453,0.03802226,105200.0,105190.0,0.58955189]
[1749990446674,0.03802226,105200.0,105190.0,0.58955178]
[1749990446955,0.03802226,105200.0,105190.0,0.58955157]
[1749990447191,0.03802226,105200.0,105190.0,0.58955156]
[1749990447401,0.03802226,105200.0,105190.0,0.5717472]
[1749990447630,0.03802226,105200.0,105190.0,0.58955161]
[1749990447837,0.03802226,105200.0,105190.0,0.5895516]
[1749990448043,0.03802226,105200.0,105190.0,0.58955162]
[1749990448453,0.03802226,105200.0,105190.0,0.5717472]
[1749990448864,0.03802226,105200.0,105190.0,0.58955167]
[1749990449680,0.03802226,105200.0,105190.0,0.58955163]
[1749990450119,0.22813632,105200.0,105190.0,0.56224123]
[1749990450445,0.22813632,105200.0,105190.0,0.58004565]
[1749990450876,0.22813632,105200.0,105190.0,0.56224123]
[1749990451056,0.22813632,105200.0,105190.0,0.58004566]
[1749990451454,0.22813632,105200.0,105190.0,0.56224123]
[1749990451690,0.22813632,105200.0,105190.0,0.58004565]
[1749990451911,0.22813632,105200.0,105190.0,0.58004566]
[1749990452075,0.22813632,105200.0,105190.0,0.56224123]
[1749990452250,0.22813632,105200.0,105190.0,0.58004566]
[1749990452458,0.22813632,105200.0,105190.0,0.58004565]
[1749990452659,0.21863089,105200.0,105190.0,0.57053959]
[1749990453126,0.21863089,105200.0,105190.0,0.55273517]
[1749990453444,0.21863089,105200.0,105190.0,0.58004582]
[1749990453648,0.02851683,105200.0,105190.0,0.58004582]
[1749990454492,0.02851683,105200.0,105190.0,0.58004574]
[1749990454836,0.02851683,105200.0,105190.0,0.58955171]
[1749990454970,0.02851683,105200.0,105190.0,0.5717472]
[1749990455184,0.02851683,105200.0,105190.0,0.58955171]
[1749990455381,0.02851683,105200.0,105190.0,0.5717472]
[1749990455607,0.02851683,105200.0,105190.0,0.58955171]
[1749990456546,0.02851683,105200.0,105190.0,0.5717472]
[1749990456660,0.02851683,105200.0,105190.0,0.58955071]
[1749990456866,0.01901113,105200.0,105190.0,0.58955071]
[1749990457135,0.01901113,105200.0,105190.0,0.58955072]
[1749990457537,0.01901113,105200.0,105190.0,0.5717472]
[1749990457685,0.01901113,105200.0,105190.0,0.58955069]
[1749990457894,0.01901113,105200.0,105190.0,0.5717472]
[1749990458296,0.01901113,105200.0,105190.0,0.58955071]
[1749990458497,0.01901113,105200.0,105190.0,0.58951071]
[1749990458920,0.01901113,105200.0,105190.0,0.5717072]
[1749990459143,0.01901113,105200.0,105190.0,0.58951071]
[1749990459344,0.01901113,105200.0,105190.0,0.5717072]
[1749990459572,0.01901113,105200.0,105190.0,0.58951071]
[1749990459949,0.01901113,105200.0,105190.0,0.5717072]
[1749990460166,0.01901113,105200.0,105190.0,0.58951071]
[1749990460740,0.01901113,105200.0,105190.0,0.5717072]
[1749990460949,0.01901113,105200.0,105190.0,0.58951071]
[1749990461148,0.01901113,105200.0,105190.0,0.5717072]
[1749990461348,0.01901113,105200.0,105190.0,0.58951071]
[1749990461640,0.01901113,105200.0,105190.0,0.5717072]
[1749990461849,0.01901113,105200.0,105190.0,0.58951066]
[1749990462055,0.01901113,105200.0,105190.0,0.5717072]
[1749990462263,0.01901113,105200.0,105190.0,0.58951064]
[1749990462686,0.01901113,105200.0,105190.0,0.58951067]
[1749990463916,0.01901113,105200.0,105190.0,0.5717072]
[1749990464469,0.01901113,105200.0,105190.0,0.58951168]
[1749990464877,0.02851683,105200.0,105190.0,0.5717072]
[1749990465081,0.02851683,105200.0,105190.0,0.58951168]
[1749990465613,0.02851683,105200.0,105190.0,0.5717072]
[1749990466143,0.02851683,105200.0,105190.0,0.58951168]
[1749990466794,0.02851683,105200.0,105190.0,0.58951169]
[1749990467207,0.02851683,105200.0,105190.0,0.58951168]
[1749990467351,0.02851683,105200.0,105190.0,0.5717072]
[1749990467537,0.02851683,105200.0,105190.0,0.58951169]
[1749990467743,0.02851683,105200.0,105190.0,0.58951168]
[1749990467949,0.02851683,105200.0,105190.0,0.5717072]
[1749990468311,0.02851683,105200.0,105190.0,0.58951168]
[1749990468807,0.02851683,105200.0,105190.0,0.5717072]
[1749990469179,0.02851683,105200.0,105190.0,0.58951167]
[1749990469585,0.02851683,105200.0,105190.0,0.58951168]
[1749990469784,0.02851683,105200.0,105190.0,0.5717072]
[1749990469974,0.02851683,105200.0,105190.0,0.58951168]
[1749990470176,0.02851683,105200.0,105190.0,0.58951167]
[1749990470654,0.02851683,105200.0,105190.0,0.5717072]
[1749990470866,0.02851683,105200.0,105190.0,0.58951168]
[1749990471247,0.02851683,105200.0,105190.0,0.58000564]
[1749990471549,0.02851683,105200.0,105190.0,0.56220123]
[1749990471762,0.02851683,105200.0,105190.0,0.5800054]
[1749990471892,0.02851683,105200.0,105190.0,0.5717072]
[1749990472099,0.21863089,105200.0,105190.0,0.5800054]
[1749990472727,0.02851683,105200.0,105190.0,0.58951137]
[1749990472935,0.02851683,105200.0,105190.0,0.5717072]
[1749990473132,0.02851683,105200.0,105190.0,0.58951136]
[1749990474170,0.02851683,105200.0,105190.0,0.5717072]
[1749990474405,0.02851683,105200.0,105190.0,0.58951136]
[1749990475221,0.02851683,105200.0,105190.0,0.5717072]
[1749990475433,0.02851683,105200.0,105190.0,0.58951136]
[1749990476588,0.21863089,105200.0,105190.0,0.58000542]
[1749990477333,0.21863089,105200.0,105190.0,0.57049936]
[1749990477923,0.21863089,105200.0,105190.0,0.55269517]
[1749990478092,0.21863089,105200.0,105190.0,0.57049937]
[1749990478292,0.21863089,105200.0,105190.0,0.57049932]
[1749990478688,0.21863089,105200.0,105190.0,0.38251517]
[1749990478935,0.21863089,105200.0,105190.0,0.53675517]